[Event "Titled Tuesday Blitz March 22 Late 2022"]
[White "Janturin, Artur"]
[Black "Van den Dikkenberg, Erik"]
[WhiteFideId "4130022"]
[BlackFideId "1005880"]
[WhiteElo "2347"]
[BlackElo "2118"]
[Result "1-0"]
[Round "06"]
[TimeControl "180+1"]
[Date "2022.03.22"]
[WhiteClock "0:00:28"]
[BlackClock "0:00:42"]

1. b3 {[%clk 0:03:00]}  d5 {[%clk 0:02:58]} 2. Bb2 {[%clk 0:03:01]}  Bf5 {[%clk 0:02:59]} 3. g3 {[%clk 0:02:58]}  e6 {[%clk 0:02:59]} 4. Bg2 {[%clk 0:02:59]}  c5 {[%clk 0:03:00]} 5. Nf3 {[%clk 0:02:57]}  Nc6 {[%clk 0:03:00]} 6. O-O {[%clk 0:02:56]}  Nf6 {[%clk 0:02:59]} 7. d3 {[%clk 0:02:56]}  Be7 {[%clk 0:02:59]} 8. Nbd2 {[%clk 0:02:55]}  h6 {[%clk 0:02:59]} 9. e3 {[%clk 0:02:54]}  O-O {[%clk 0:02:58]} 10. Qe2 {[%clk 0:02:55]}  Bh7 {[%clk 0:02:57]} 11. e4 {[%clk 0:02:38]}  d4 {[%clk 0:02:42]} 12. Nh4 {[%clk 0:02:17]}  Nd7 {[%clk 0:02:31]} 13. Nhf3 {[%clk 0:02:03]}  Rc8 {[%clk 0:02:25]} 14. a4 {[%clk 0:01:56]}  Nb4 {[%clk 0:02:20]} 15. Nc4 {[%clk 0:01:51]}  Qc7 {[%clk 0:02:05]} 16. Bc1 {[%clk 0:01:48]}  e5 {[%clk 0:01:43]} 17. Bh3 {[%clk 0:01:40]}  f6 {[%clk 0:01:34]} 18. Nh4 {[%clk 0:01:30]}  Rcd8 {[%clk 0:01:27]} 19. Qh5 {[%clk 0:00:59]}  Nxc2 {[%clk 0:01:11]} 20. Be6+ {[%clk 0:00:57]}  Kh8 {[%clk 0:01:05]} 21. Ng6+ {[%clk 0:00:52]}  Bxg6 {[%clk 0:01:05]} 22. Qxg6 {[%clk 0:00:53]}  f5 {[%clk 0:00:54]} 23. Bxh6 {[%clk 0:00:43]}  Bf6 {[%clk 0:00:50]} 24. Bxg7+ {[%clk 0:00:27]}  Bxg7 {[%clk 0:00:44]} 25. Qh5+ {[%clk 0:00:27]}  Bh6 {[%clk 0:00:42]} 26. Qxh6# {[%clk 0:00:28]} 1-0


[Site "https://www.chess.com"]

[Event "Titled Tuesday Blitz March 22 Late 2022"]
[White "Jary, Sergey"]
[Black "Sanal, Vahap"]
[WhiteFideId "14110350"]
[BlackFideId "6300545"]
[WhiteElo "2260"]
[BlackElo "2603"]
[Result "0-1"]
[Round "06"]
[TimeControl "180+1"]
[Date "2022.03.22"]
[WhiteClock "0:02:15"]
[BlackClock "0:02:44"]

1. e4 {[%clk 0:02:56]}  c5 {[%clk 0:02:59]} 2. Nf3 {[%clk 0:02:56]}  Nc6 {[%clk 0:03:00]} 3. d4 {[%clk 0:02:56]}  cxd4 {[%clk 0:03:00]} 4. Nxd4 {[%clk 0:02:56]}  Nf6 {[%clk 0:03:01]} 5. Nc3 {[%clk 0:02:56]}  d6 {[%clk 0:03:01]} 6. Be3 {[%clk 0:02:55]}  e6 {[%clk 0:02:58]} 7. f3 {[%clk 0:02:54]}  Be7 {[%clk 0:02:58]} 8. Qd2 {[%clk 0:02:54]}  O-O {[%clk 0:02:59]} 9. O-O-O {[%clk 0:02:55]}  a6 {[%clk 0:02:59]} 10. Kb1 {[%clk 0:02:55]}  Bd7 {[%clk 0:02:59]} 11. g4 {[%clk 0:02:55]}  Nxd4 {[%clk 0:02:58]} 12. Bxd4 {[%clk 0:02:55]}  Bc6 {[%clk 0:02:58]} 13. h4 {[%clk 0:02:54]}  b5 {[%clk 0:02:53]} 14. h5 {[%clk 0:02:50]}  b4 {[%clk 0:02:53]} 15. Ne2 {[%clk 0:02:50]}  Nd7 {[%clk 0:02:49]} 16. h6 {[%clk 0:02:43]}  g6 {[%clk 0:02:49]} 17. f4 {[%clk 0:02:39]}  Bxe4 {[%clk 0:02:48]} 18. Rg1 {[%clk 0:02:36]}  Rc8 {[%clk 0:02:48]} 19. Rc1 {[%clk 0:02:35]}  e5 {[%clk 0:02:47]} 20. Be3 {[%clk 0:02:32]}  d5 {[%clk 0:02:46]} 21. f5 {[%clk 0:02:30]}  d4 {[%clk 0:02:45]} 22. Bf2 {[%clk 0:02:23]}  Bg5 {[%clk 0:02:45]} 23. Qd1 {[%clk 0:02:14]}  Bxc1 {[%clk 0:02:45]} 24. Nxc1 {[%clk 0:02:15]}  Bxc2+ {[%clk 0:02:44]} 0-1


[Site "https://www.chess.com"]

[Event "Titled Tuesday Blitz March 22 Late 2022"]
[White "Karttunen, Mika"]
[Black "Kozak, Adam"]
[WhiteFideId "502081"]
[BlackFideId "753246"]
[WhiteElo "2343"]
[BlackElo "2459"]
[Result "0-1"]
[Round "06"]
[TimeControl "180+1"]
[Date "2022.03.22"]
[WhiteClock "0:00:04"]
[BlackClock "0:00:09"]

1. d4 {[%clk 0:03:00]}  e6 {[%clk 0:02:58]} 2. c4 {[%clk 0:02:59]}  d5 {[%clk 0:02:58]} 3. Nc3 {[%clk 0:02:52]}  Bb4 {[%clk 0:02:55]} 4. cxd5 {[%clk 0:02:45]}  exd5 {[%clk 0:02:55]} 5. Nf3 {[%clk 0:02:42]}  c6 {[%clk 0:02:55]} 6. Bg5 {[%clk 0:02:40]}  Be7 {[%clk 0:02:54]} 7. Bf4 {[%clk 0:02:22]}  Bf5 {[%clk 0:02:53]} 8. e3 {[%clk 0:02:21]}  Nd7 {[%clk 0:02:53]} 9. Bd3 {[%clk 0:02:18]}  Bg6 {[%clk 0:02:52]} 10. h3 {[%clk 0:02:13]}  Ngf6 {[%clk 0:02:49]} 11. g4 {[%clk 0:02:12]}  O-O {[%clk 0:02:48]} 12. Kf1 {[%clk 0:02:10]}  Ne4 {[%clk 0:02:47]} 13. Bxe4 {[%clk 0:01:56]}  dxe4 {[%clk 0:02:46]} 14. Nd2 {[%clk 0:01:52]}  Nf6 {[%clk 0:02:38]} 15. Qb3 {[%clk 0:01:34]}  Qd7 {[%clk 0:02:32]} 16. Nc4 {[%clk 0:01:31]}  Qe6 {[%clk 0:02:19]} 17. Ne5 {[%clk 0:01:25]}  Qxb3 {[%clk 0:02:18]} 18. axb3 {[%clk 0:01:25]}  Rfe8 {[%clk 0:02:09]} 19. h4 {[%clk 0:01:18]}  h6 {[%clk 0:01:59]} 20. Nxg6 {[%clk 0:01:16]}  fxg6 {[%clk 0:02:00]} 21. g5 {[%clk 0:00:59]}  Nh5 {[%clk 0:01:59]} 22. Be5 {[%clk 0:00:56]}  hxg5 {[%clk 0:01:53]} 23. hxg5 {[%clk 0:00:56]}  Bxg5 {[%clk 0:01:53]} 24. Nxe4 {[%clk 0:00:56]}  Bf6 {[%clk 0:01:54]} 25. f4 {[%clk 0:00:51]}  c5 {[%clk 0:01:39]} 26. Kf2 {[%clk 0:00:38]}  cxd4 {[%clk 0:01:39]} 27. exd4 {[%clk 0:00:38]}  Rac8 {[%clk 0:01:35]} 28. Rhc1 {[%clk 0:00:37]}  Rcd8 {[%clk 0:01:27]} 29. Ke3 {[%clk 0:00:34]}  g5 {[%clk 0:01:19]} 30. Nxg5 {[%clk 0:00:28]}  Ng3 {[%clk 0:00:44]} 31. Nf3 {[%clk 0:00:28]}  Nf5+ {[%clk 0:00:43]} 32. Kf2 {[%clk 0:00:25]}  a6 {[%clk 0:00:36]} 33. Rc7 {[%clk 0:00:24]}  Bxe5 {[%clk 0:00:32]} 34. dxe5 {[%clk 0:00:24]}  Rd3 {[%clk 0:00:32]} 35. Rxb7 {[%clk 0:00:23]}  Rc8 {[%clk 0:00:33]} 36. Ne1 {[%clk 0:00:15]}  Rh3 {[%clk 0:00:28]} 37. e6 {[%clk 0:00:12]}  Rc6 {[%clk 0:00:23]} 38. e7 {[%clk 0:00:11]}  Nd6 {[%clk 0:00:10]} 39. Rd1 {[%clk 0:00:08]}  Kf7 {[%clk 0:00:09]} 40. Ra7 {[%clk 0:00:06]}  Ne4+ {[%clk 0:00:09]} 41. Kg1 {[%clk 0:00:04]}  Rg3+ {[%clk 0:00:09]} 42. Kh2 {[%clk 0:00:04]}  Rh6# {[%clk 0:00:09]} 0-1


[Site "https://www.chess.com"]

[Event "Titled Tuesday Blitz March 22 Late 2022"]
[White "Kokoszczynski, Jan"]
[Black "Mikhalsky, Vladimir"]
[WhiteFideId "1174460"]
[BlackFideId "14144352"]
[WhiteElo "2163"]
[BlackElo "2301"]
[Result "0-1"]
[Round "06"]
[TimeControl "180+1"]
[Date "2022.03.22"]
[WhiteClock "0:00:15"]
[BlackClock "0:00:28"]

1. e4 {[%clk 0:02:56]}  g6 {[%clk 0:02:59]} 2. d4 {[%clk 0:02:54]}  Bg7 {[%clk 0:02:59]} 3. Nc3 {[%clk 0:02:54]}  d6 {[%clk 0:02:59]} 4. Bg5 {[%clk 0:02:53]}  h6 {[%clk 0:02:58]} 5. Be3 {[%clk 0:02:52]}  a6 {[%clk 0:02:58]} 6. Qd2 {[%clk 0:02:47]}  b5 {[%clk 0:02:56]} 7. Bd3 {[%clk 0:02:43]}  Nc6 {[%clk 0:02:53]} 8. Nce2 {[%clk 0:02:42]}  Nf6 {[%clk 0:02:50]} 9. h3 {[%clk 0:02:37]}  Bb7 {[%clk 0:02:41]} 10. Ng3 {[%clk 0:02:29]}  h5 {[%clk 0:02:35]} 11. Nf3 {[%clk 0:02:21]}  e5 {[%clk 0:02:23]} 12. dxe5 {[%clk 0:02:03]}  Nxe5 {[%clk 0:02:22]} 13. Nxe5 {[%clk 0:02:01]}  dxe5 {[%clk 0:02:22]} 14. Bc5 {[%clk 0:02:00]}  h4 {[%clk 0:02:18]} 15. Ne2 {[%clk 0:01:47]}  Nxe4 {[%clk 0:02:17]} 16. Bxe4 {[%clk 0:01:36]}  Qxd2+ {[%clk 0:02:16]} 17. Kxd2 {[%clk 0:01:37]}  Bxe4 {[%clk 0:02:16]} 18. f3 {[%clk 0:01:38]}  O-O-O+ {[%clk 0:02:07]} 19. Ke3 {[%clk 0:01:36]}  Bxc2 {[%clk 0:02:02]} 20. Rac1 {[%clk 0:01:36]}  Bh6+ {[%clk 0:01:57]} 21. f4 {[%clk 0:01:36]}  exf4+ {[%clk 0:01:56]} 22. Kf3 {[%clk 0:01:36]}  Bd3 {[%clk 0:01:29]} 23. Nxf4 {[%clk 0:01:27]}  Bc4 {[%clk 0:01:08]} 24. b3 {[%clk 0:01:25]}  Bd5+ {[%clk 0:01:04]} 25. Nxd5 {[%clk 0:01:25]}  Rxd5 {[%clk 0:01:04]} 26. Rc2 {[%clk 0:01:20]}  Re8 {[%clk 0:01:02]} 27. g4 {[%clk 0:01:15]}  Rd3+ {[%clk 0:00:58]} 28. Kf2 {[%clk 0:01:13]}  Red8 {[%clk 0:00:51]} 29. Be7 {[%clk 0:01:10]}  Rd2+ {[%clk 0:00:50]} 30. Rxd2 {[%clk 0:01:09]}  Rxd2+ {[%clk 0:00:50]} 31. Kf3 {[%clk 0:01:10]}  Rxa2 {[%clk 0:00:50]} 32. Bxh4 {[%clk 0:01:09]}  Rb2 {[%clk 0:00:49]} 33. Bf6 {[%clk 0:01:05]}  Rxb3+ {[%clk 0:00:49]} 34. Ke4 {[%clk 0:01:03]}  Kd7 {[%clk 0:00:49]} 35. g5 {[%clk 0:00:59]}  Bf8 {[%clk 0:00:48]} 36. Rd1+ {[%clk 0:00:59]}  Bd6 {[%clk 0:00:48]} 37. h4 {[%clk 0:00:59]}  Ke6 {[%clk 0:00:48]} 38. Rh1 {[%clk 0:00:58]}  Rb4+ {[%clk 0:00:47]} 39. Kd3 {[%clk 0:00:57]}  Rg4 {[%clk 0:00:47]} 40. h5 {[%clk 0:00:56]}  gxh5 {[%clk 0:00:47]} 41. Rxh5 {[%clk 0:00:57]}  a5 {[%clk 0:00:46]} 42. Rh6 {[%clk 0:00:52]}  a4 {[%clk 0:00:46]} 43. Bd4+ {[%clk 0:00:44]}  Kd5 {[%clk 0:00:44]} 44. Be3 {[%clk 0:00:41]}  Rg3 {[%clk 0:00:44]} 45. Ke2 {[%clk 0:00:40]}  a3 {[%clk 0:00:42]} 46. Rh1 {[%clk 0:00:37]}  b4 {[%clk 0:00:40]} 47. Rd1+ {[%clk 0:00:36]}  Kc4 {[%clk 0:00:40]} 48. Rc1+ {[%clk 0:00:36]}  Kb5 {[%clk 0:00:40]} 49. g6 {[%clk 0:00:35]}  fxg6 {[%clk 0:00:39]} 50. Rf1 {[%clk 0:00:33]}  a2 {[%clk 0:00:39]} 51. Kd3 {[%clk 0:00:32]}  b3 {[%clk 0:00:38]} 52. Kd2 {[%clk 0:00:26]}  Rxe3 {[%clk 0:00:35]} 53. Rf8 {[%clk 0:00:21]}  a1=Q {[%clk 0:00:32]} 54. Rb8+ {[%clk 0:00:21]}  Kc6 {[%clk 0:00:32]} 55. Rxb3 {[%clk 0:00:15]}  Qe1+ {[%clk 0:00:29]} 56. Kc2 {[%clk 0:00:16]}  Qf2+ {[%clk 0:00:29]} 57. Kd1 {[%clk 0:00:15]}  Re1# {[%clk 0:00:28]} 0-1


[Site "https://www.chess.com"]

[Event "Titled Tuesday Blitz March 22 Late 2022"]
[White "Kovanova, Baira"]
[Black "Curtis, John"]
[WhiteFideId "4164083"]
[BlackFideId "3200256"]
[WhiteElo "2190"]
[BlackElo "2203"]
[Result "1-0"]
[Round "06"]
[TimeControl "180+1"]
[Date "2022.03.22"]
[WhiteClock "0:01:05"]
[BlackClock "0:00:47"]

1. e4 {[%clk 0:02:59]}  c5 {[%clk 0:02:59]} 2. Nf3 {[%clk 0:02:59]}  d6 {[%clk 0:02:41]} 3. d4 {[%clk 0:02:58]}  cxd4 {[%clk 0:02:41]} 4. Nxd4 {[%clk 0:02:58]}  Nf6 {[%clk 0:02:41]} 5. Nc3 {[%clk 0:02:58]}  a6 {[%clk 0:02:42]} 6. Be3 {[%clk 0:02:58]}  e5 {[%clk 0:02:42]} 7. Nf3 {[%clk 0:02:58]}  h6 {[%clk 0:02:39]} 8. Bc4 {[%clk 0:02:51]}  Be6 {[%clk 0:02:36]} 9. Bb3 {[%clk 0:02:50]}  Nbd7 {[%clk 0:02:34]} 10. O-O {[%clk 0:02:50]}  Be7 {[%clk 0:02:32]} 11. Nh4 {[%clk 0:02:47]}  g5 {[%clk 0:01:53]} 12. Nf5 {[%clk 0:02:35]}  Nxe4 {[%clk 0:01:41]} 13. Ng7+ {[%clk 0:02:31]}  Kf8 {[%clk 0:01:39]} 14. Nxe6+ {[%clk 0:02:31]}  fxe6 {[%clk 0:01:34]} 15. Nxe4 {[%clk 0:02:30]}  d5 {[%clk 0:01:35]} 16. Ng3 {[%clk 0:02:30]}  Nf6 {[%clk 0:01:31]} 17. Re1 {[%clk 0:02:19]}  Rc8 {[%clk 0:01:27]} 18. Bd2 {[%clk 0:01:45]}  Rc6 {[%clk 0:01:26]} 19. Rxe5 {[%clk 0:01:44]}  Kg7 {[%clk 0:01:25]} 20. Qe2 {[%clk 0:01:37]}  Bd6 {[%clk 0:01:17]} 21. Rxe6 {[%clk 0:01:33]}  Bxg3 {[%clk 0:01:15]} 22. hxg3 {[%clk 0:01:32]}  Rxe6 {[%clk 0:01:09]} 23. Qxe6 {[%clk 0:01:32]}  Re8 {[%clk 0:01:10]} 24. Qf5 {[%clk 0:01:31]}  d4 {[%clk 0:01:08]} 25. Rd1 {[%clk 0:01:27]}  Qe7 {[%clk 0:01:04]} 26. Re1 {[%clk 0:01:14]}  Qd8 {[%clk 0:00:50]} 27. Rxe8 {[%clk 0:01:14]}  Qxe8 {[%clk 0:00:51]} 28. Qe6 {[%clk 0:01:07]}  Qd8 {[%clk 0:00:47]} 29. Qf7+ {[%clk 0:01:05]} 1-0


[Site "https://www.chess.com"]

[Event "Titled Tuesday Blitz March 22 Late 2022"]
[White "Kozin, Yuri"]
[Black "Bluebaum, Matthias"]
[WhiteFideId "4129920"]
[BlackFideId "24651516"]
[WhiteElo "2556"]
[BlackElo "2550"]
[Result "0-1"]
[Round "06"]
[TimeControl "180+1"]
[Date "2022.03.22"]
[WhiteClock "0:00:01"]
[BlackClock "0:00:11"]

1. e4 {[%clk 0:03:00]}  c6 {[%clk 0:03:00]} 2. d4 {[%clk 0:03:00]}  d5 {[%clk 0:03:01]} 3. exd5 {[%clk 0:03:01]}  cxd5 {[%clk 0:03:02]} 4. c4 {[%clk 0:03:02]}  Nf6 {[%clk 0:03:02]} 5. Nc3 {[%clk 0:03:02]}  Nc6 {[%clk 0:03:03]} 6. Bg5 {[%clk 0:03:03]}  a6 {[%clk 0:03:03]} 7. Bxf6 {[%clk 0:02:50]}  exf6 {[%clk 0:03:04]} 8. cxd5 {[%clk 0:02:51]}  Ne7 {[%clk 0:03:04]} 9. Qa4+ {[%clk 0:02:32]}  Bd7 {[%clk 0:03:03]} 10. Qb3 {[%clk 0:02:32]}  Nf5 {[%clk 0:03:00]} 11. Nf3 {[%clk 0:02:26]}  Nd6 {[%clk 0:02:56]} 12. Be2 {[%clk 0:02:20]}  Be7 {[%clk 0:02:57]} 13. O-O {[%clk 0:02:19]}  O-O {[%clk 0:02:57]} 14. Rfe1 {[%clk 0:02:14]}  Rc8 {[%clk 0:02:57]} 15. Rad1 {[%clk 0:02:07]}  Re8 {[%clk 0:02:57]} 16. h3 {[%clk 0:01:55]}  Bf8 {[%clk 0:02:56]} 17. Bd3 {[%clk 0:01:50]}  Qa5 {[%clk 0:02:57]} 18. Rxe8 {[%clk 0:01:47]}  Rxe8 {[%clk 0:02:58]} 19. Re1 {[%clk 0:01:47]}  Rc8 {[%clk 0:02:53]} 20. a3 {[%clk 0:01:22]}  b5 {[%clk 0:02:51]} 21. Rc1 {[%clk 0:01:16]}  Qb6 {[%clk 0:02:48]} 22. Na2 {[%clk 0:01:09]}  Rxc1+ {[%clk 0:02:22]} 23. Nxc1 {[%clk 0:01:09]}  Nf5 {[%clk 0:02:22]} 24. Qc3 {[%clk 0:00:59]}  b4 {[%clk 0:02:22]} 25. axb4 {[%clk 0:00:56]}  Bxb4 {[%clk 0:02:23]} 26. Qb3 {[%clk 0:00:48]}  a5 {[%clk 0:02:06]} 27. Bxf5 {[%clk 0:00:43]}  Bxf5 {[%clk 0:02:07]} 28. Nd3 {[%clk 0:00:43]}  Qd6 {[%clk 0:01:16]} 29. Nxb4 {[%clk 0:00:38]}  axb4 {[%clk 0:01:17]} 30. Qc4 {[%clk 0:00:35]}  g5 {[%clk 0:01:03]} 31. Qc5 {[%clk 0:00:34]}  Qf4 {[%clk 0:01:04]} 32. d6 {[%clk 0:00:30]}  b3 {[%clk 0:00:56]} 33. Qd5 {[%clk 0:00:22]}  Be6 {[%clk 0:00:23]} 34. Qc5 {[%clk 0:00:16]}  Kg7 {[%clk 0:00:21]} 35. d5 {[%clk 0:00:16]}  Bf5 {[%clk 0:00:21]} 36. Qd4 {[%clk 0:00:16]}  Qc1+ {[%clk 0:00:20]} 37. Kh2 {[%clk 0:00:15]}  Bd7 {[%clk 0:00:19]} 38. Qd2 {[%clk 0:00:13]}  Qc5 {[%clk 0:00:17]} 39. Qd4 {[%clk 0:00:13]}  Qxd6+ {[%clk 0:00:18]} 40. g3 {[%clk 0:00:12]}  h6 {[%clk 0:00:18]} 41. Kg2 {[%clk 0:00:12]}  Bf5 {[%clk 0:00:16]} 42. Nd2 {[%clk 0:00:12]}  Be6 {[%clk 0:00:15]} 43. Kf1 {[%clk 0:00:03]}  Bxd5 {[%clk 0:00:12]} 44. Ke2 {[%clk 0:00:01]}  Qe6+ {[%clk 0:00:12]} 45. Kd3 {[%clk 0:00:01]}  Bg2 {[%clk 0:00:11]} 46. Qe3 {[%clk 0:00:01]}  Bxh3 {[%clk 0:00:11]} 0-1


[Site "https://www.chess.com"]

[Event "Titled Tuesday Blitz March 22 Late 2022"]
[White "Le Goff, Ronan"]
[Black "Bashirli, Nail"]
[WhiteFideId "612073"]
[BlackFideId "13406809"]
[WhiteElo "2276"]
[BlackElo "2333"]
[Result "0-1"]
[Round "06"]
[TimeControl "180+1"]
[Date "2022.03.22"]
[WhiteClock "0:00:04"]
[BlackClock "0:01:04"]

1. d4 {[%clk 0:03:00]}  Nf6 {[%clk 0:02:59]} 2. Nf3 {[%clk 0:03:00]}  e6 {[%clk 0:02:57]} 3. c4 {[%clk 0:02:57]}  b6 {[%clk 0:02:54]} 4. a3 {[%clk 0:02:51]}  Ba6 {[%clk 0:02:49]} 5. e3 {[%clk 0:02:38]}  d5 {[%clk 0:02:47]} 6. Nc3 {[%clk 0:02:28]}  Bxc4 {[%clk 0:02:38]} 7. Bxc4 {[%clk 0:02:25]}  dxc4 {[%clk 0:02:39]} 8. Qa4+ {[%clk 0:02:24]}  Nbd7 {[%clk 0:02:37]} 9. Ne5 {[%clk 0:02:22]}  Bd6 {[%clk 0:02:35]} 10. Nc6 {[%clk 0:02:19]}  Qc8 {[%clk 0:02:36]} 11. e4 {[%clk 0:02:10]}  a6 {[%clk 0:02:21]} 12. Qxc4 {[%clk 0:01:39]}  b5 {[%clk 0:02:20]} 13. Qe2 {[%clk 0:01:32]}  e5 {[%clk 0:02:12]} 14. dxe5 {[%clk 0:01:16]}  Nxe5 {[%clk 0:02:12]} 15. Nxe5 {[%clk 0:01:16]}  Bxe5 {[%clk 0:02:13]} 16. O-O {[%clk 0:00:51]}  O-O {[%clk 0:02:11]} 17. h3 {[%clk 0:00:44]}  Re8 {[%clk 0:02:01]} 18. Nd1 {[%clk 0:00:32]}  Nxe4 {[%clk 0:01:55]} 19. Ne3 {[%clk 0:00:24]}  c5 {[%clk 0:01:43]} 20. Qf3 {[%clk 0:00:18]}  Bd4 {[%clk 0:01:41]} 21. Nf5 {[%clk 0:00:17]}  Bf6 {[%clk 0:01:20]} 22. Re1 {[%clk 0:00:13]}  Qe6 {[%clk 0:01:12]} 23. Be3 {[%clk 0:00:09]}  Bxb2 {[%clk 0:01:08]} 24. Rab1 {[%clk 0:00:09]}  Bf6 {[%clk 0:01:07]} 25. Bxc5 {[%clk 0:00:09]}  Nd2 {[%clk 0:01:03]} 26. Qd1 {[%clk 0:00:02]}  Qxf5 {[%clk 0:01:03]} 27. Qxd2 {[%clk 0:00:02]}  Qxc5 {[%clk 0:01:03]} 28. Rxe8+ {[%clk 0:00:02]}  Rxe8 {[%clk 0:01:04]} 29. Qd7 {[%clk 0:00:02]}  Rd8 {[%clk 0:01:03]} 30. Re1 {[%clk 0:00:02]}  Rxd7 {[%clk 0:01:03]} 31. Re8+ {[%clk 0:00:03]}  Qf8 {[%clk 0:01:03]} 32. Rxf8+ {[%clk 0:00:04]}  Kxf8 {[%clk 0:01:04]} 0-1


[Site "https://www.chess.com"]

[Event "Titled Tuesday Blitz March 22 Late 2022"]
[White "Maghsoodloo, Parham"]
[Black "Oganian, Miran"]
[WhiteFideId "12539929"]
[BlackFideId "4122488"]
[WhiteElo "2630"]
[BlackElo "2357"]
[Result "1-0"]
[Round "06"]
[TimeControl "180+1"]
[Date "2022.03.22"]
[WhiteClock "0:01:43"]
[BlackClock "0:00:01"]

1. d4 {[%clk 0:03:00]}  e6 {[%clk 0:03:00]} 2. c4 {[%clk 0:03:00]}  d5 {[%clk 0:03:00]} 3. Nf3 {[%clk 0:03:01]}  a6 {[%clk 0:03:01]} 4. cxd5 {[%clk 0:02:59]}  exd5 {[%clk 0:03:02]} 5. Nc3 {[%clk 0:03:00]}  Nf6 {[%clk 0:03:03]} 6. Qb3 {[%clk 0:02:59]}  c6 {[%clk 0:03:02]} 7. Bg5 {[%clk 0:02:59]}  Be7 {[%clk 0:03:01]} 8. e3 {[%clk 0:02:59]}  O-O {[%clk 0:02:59]} 9. Bd3 {[%clk 0:02:59]}  Nbd7 {[%clk 0:03:00]} 10. O-O {[%clk 0:03:00]}  Re8 {[%clk 0:03:00]} 11. h3 {[%clk 0:02:58]}  Nf8 {[%clk 0:03:01]} 12. Qc2 {[%clk 0:02:57]}  Bd6 {[%clk 0:02:57]} 13. Rab1 {[%clk 0:02:57]}  h6 {[%clk 0:02:57]} 14. Bf4 {[%clk 0:02:56]}  Bxf4 {[%clk 0:02:43]} 15. exf4 {[%clk 0:02:56]}  Ne6 {[%clk 0:02:44]} 16. Ne2 {[%clk 0:02:55]}  Qd6 {[%clk 0:02:44]} 17. Ne5 {[%clk 0:02:47]}  c5 {[%clk 0:02:37]} 18. dxc5 {[%clk 0:02:47]}  Nxc5 {[%clk 0:02:37]} 19. Rbd1 {[%clk 0:02:46]}  Nxd3 {[%clk 0:02:27]} 20. Qxd3 {[%clk 0:02:46]}  Bd7 {[%clk 0:02:21]} 21. Nd4 {[%clk 0:02:46]}  Rac8 {[%clk 0:02:16]} 22. Rfe1 {[%clk 0:02:45]}  Ne4 {[%clk 0:02:07]} 23. Ndf3 {[%clk 0:02:37]}  Nf6 {[%clk 0:02:06]} 24. b3 {[%clk 0:02:24]}  Bb5 {[%clk 0:02:06]} 25. Qd4 {[%clk 0:02:23]}  Rc2 {[%clk 0:01:57]} 26. Rd2 {[%clk 0:02:23]}  Rec8 {[%clk 0:01:55]} 27. Ng4 {[%clk 0:02:12]}  Nxg4 {[%clk 0:01:53]} 28. hxg4 {[%clk 0:02:13]}  Qf6 {[%clk 0:01:22]} 29. Re5 {[%clk 0:02:04]}  Rc1+ {[%clk 0:01:20]} 30. Kh2 {[%clk 0:02:04]}  R8c3 {[%clk 0:01:05]} 31. Rxd5 {[%clk 0:02:04]}  Qg6 {[%clk 0:00:49]} 32. f5 {[%clk 0:02:03]}  Qc6 {[%clk 0:00:43]} 33. Qf4 {[%clk 0:01:58]}  Qb6 {[%clk 0:00:22]} 34. Rd6 {[%clk 0:01:45]}  Qc7 {[%clk 0:00:19]} 35. f6 {[%clk 0:01:43]}  g5 {[%clk 0:00:15]} 36. Nxg5 {[%clk 0:01:42]}  Be8 {[%clk 0:00:05]} 37. Ne4 {[%clk 0:01:43]}  R3c2 {[%clk 0:00:02]} 38. Qxh6 {[%clk 0:01:43]}  Rxd2 {[%clk 0:00:01]} 39. Qg7# {[%clk 0:01:43]} 1-0


[Site "https://www.chess.com"]

[Event "Titled Tuesday Blitz March 22 Late 2022"]
[White "Mangialardo, Tiago Carvalho"]
[Black "Atanejhad, Sahebali"]
[WhiteFideId "2130718"]
[BlackFideId "12506664"]
[WhiteElo "2095"]
[BlackElo "1977"]
[Result "0-1"]
[Round "06"]
[TimeControl "180+1"]
[Date "2022.03.22"]
[WhiteClock "0:00:02"]
[BlackClock "0:01:29"]

1. e4 {[%clk 0:03:00]}  c5 {[%clk 0:02:59]} 2. Nf3 {[%clk 0:03:00]}  g6 {[%clk 0:02:52]} 3. d4 {[%clk 0:02:58]}  cxd4 {[%clk 0:02:53]} 4. Nxd4 {[%clk 0:02:58]}  Nc6 {[%clk 0:02:53]} 5. Nc3 {[%clk 0:02:58]}  Bg7 {[%clk 0:02:53]} 6. Be3 {[%clk 0:02:58]}  Nf6 {[%clk 0:02:53]} 7. Be2 {[%clk 0:02:58]}  O-O {[%clk 0:02:53]} 8. O-O {[%clk 0:02:58]}  d5 {[%clk 0:02:53]} 9. exd5 {[%clk 0:02:53]}  Nxd5 {[%clk 0:02:54]} 10. Nxc6 {[%clk 0:02:45]}  bxc6 {[%clk 0:02:53]} 11. Nxd5 {[%clk 0:02:38]}  cxd5 {[%clk 0:02:53]} 12. c3 {[%clk 0:02:39]}  e5 {[%clk 0:02:52]} 13. Bc5 {[%clk 0:02:37]}  Re8 {[%clk 0:02:51]} 14. Bb5 {[%clk 0:02:38]}  Bd7 {[%clk 0:02:50]} 15. Be2 {[%clk 0:02:01]}  Bc6 {[%clk 0:02:45]} 16. Qc2 {[%clk 0:01:58]}  Qc7 {[%clk 0:02:37]} 17. Rfd1 {[%clk 0:01:42]}  Rab8 {[%clk 0:02:35]} 18. Be3 {[%clk 0:01:40]}  Qb7 {[%clk 0:02:34]} 19. b3 {[%clk 0:01:34]}  d4 {[%clk 0:02:34]} 20. cxd4 {[%clk 0:01:35]}  Bxg2 {[%clk 0:02:33]} 21. Qc4 {[%clk 0:00:55]}  exd4 {[%clk 0:02:25]} 22. Bxd4 {[%clk 0:00:56]}  Rxe2 {[%clk 0:01:59]} 23. Qxe2 {[%clk 0:00:37]}  Bf3 {[%clk 0:01:58]} 24. Qe3 {[%clk 0:00:29]}  Bxd1 {[%clk 0:01:32]} 25. Rxd1 {[%clk 0:00:30]}  Rd8 {[%clk 0:01:32]} 26. Bxg7 {[%clk 0:00:02]}  Rxd1+ {[%clk 0:01:29]} 0-1


[Site "https://www.chess.com"]